{"text_format":"1","workbook":"xlsx","n_sheets":10,"sheets":["シート構成","①ご提出について A","②ご提出について B","③派遣承諾書","④人材派遣見積書兼人材派遣仕様書","⑤通知書","⑥【記入例】派遣承諾書","⑦【記入例】通知書","⑧名前詳細シート","⑨アルファベット姓名シート"],"not_rendered":{"charts":0,"images":5,"macros":1,"external_links":0,"defined_names":162,"comments":0,"pivot_tables":0},"unopened":[],"bounds":{"document_bytes":16777216,"sheet_cells":100000,"rows_first":2000,"rows_last":500,"rows_between":2000,"halvings":0,"cell_chars":16384,"cell_head_chars":4096},"cells_cut":0,"cells_raw":0,"read":"whole","date_system":"1900"}

{"sheet":"シート構成","index":0,"n_rows":49,"n_cols":35,"rows_kept":49,"cut":false,"hidden":false,"merged":[[20,10,23,13],[16,10,19,17],[20,18,21,22],[20,23,21,29],[22,23,23,29],[22,18,23,22],[18,18,19,22],[18,23,19,29],[22,14,23,17],[20,14,21,17],[16,18,17,29],[35,5,36,5],[35,6,36,15],[28,16,28,33],[29,16,30,33],[31,16,32,33],[33,16,34,33],[35,16,36,33],[29,5,30,5],[29,6,30,15],[33,5,34,5],[33,6,34,15],[31,5,32,5],[31,6,32,15],[39,16,40,33],[45,5,46,5],[45,6,46,15],[41,5,42,5],[41,6,42,15],[43,5,44,5],[43,6,44,15],[2,0,3,34],[5,0,6,37],[28,6,28,15],[11,5,11,34],[48,5,50,5],[48,6,50,15],[48,16,50,33],[12,5,12,34],[41,16,42,33],[43,16,44,33],[45,16,46,33],[37,5,38,5],[37,6,38,15],[39,5,40,5],[39,6,40,15],[37,16,38,33]]}
[]
[]
["派遣元会社のご担当者様へ"]
[]
[]
["本様式の使い方、及びシート構成について"]
[]
[]
[null,null,null,null,null,null,null,null,null,null,null,null,null,null,null,null,null,null,null,null,null,null,null,null,null,null,null,null,null,null,null,null,null,null,"株式会社NTTデータ　プロキュアメント部"]
[null,null,null,null,null,null,null,null,null,null,null,null,null,null,null,null,null,null,null,null,null,null,null,null,null,null,null,null,null,null,null,null,null,null,"NTTデータマネジメントサービス株式会社　購買事業部"]
[]
[null,null,null,null,null,"Aribaシステム及びe-staffingの利用状況により、ご提出いただく書類・提出方法が異なります。"]
[null,null,null,null,null,"以下ご参照の上、適切なシートをご参照ください。"]
[null,null,null,null,null,"※本様式（派遣承諾書兼通知書）にはマクロが組まれています。一番初めにマクロを有効にしてから各項目をご入力下さい。"]
[null,null,null,null,null,null,"マクロを有効にしないことを起因とする問合せが非常に多くなっております。ご注意ください。"]
[]
[null,null,null,null,null,null,null,null,null,null,null,null,null,null,null,null,null,null,"e-staffing利用案件"]
[]
[null,null,null,null,null,null,null,null,null,null,null,null,null,null,null,null,null,null,"有",null,null,null,null,"無"]
[]
[null,null,null,null,null,null,null,null,null,null,"Ariba利用案件",null,null,null,"有",null,null,null,"紙面での提出は\n不要（※）",null,null,null,null,"ご提出について A"]
[]
[null,null,null,null,null,null,null,null,null,null,null,null,null,null,"無",null,null,null,"存在しない\n組み合わせ",null,null,null,null,"ご提出について B"]
[]
[]
[null,null,null,null,null,null,null,null,null,"※","「Ariba利用」かつ「e-staffing利用」の案件については、本書の提出は不要です。"]
[null,null,null,null,null,null,null,null,null,null,"詳細は下記【派遣会社様向けマニュアル】でご確認ください。"]
[]
[null,null,null,null,null,null,"シート名称",null,null,null,null,null,null,null,null,null,"説明"]
[null,null,null,null,null,"①","ご提出について A",null,null,null,null,null,null,null,null,null,"【Aribaを利用しているが、e-staffingを利用していない案件向けの説明】\n本様式を提出することについてのルールを記載"]
[]
[null,null,null,null,null,"②","ご提出について B",null,null,null,null,null,null,null,null,null,"【Aribaもe-staffingも利用していない案件向けの説明】\n本様式を提出することについてのルールを記載"]
[]
[null,null,null,null,null,"③","派遣承諾書",null,null,null,null,null,null,null,null,null,"派遣元が派遣契約を承諾した旨を通知するための書類\n（注文書を受領後にご提出下さい）"]
[]
[null,null,null,null,null,"④","人材派遣見積書兼人材派遣仕様書",null,null,null,null,null,null,null,null,null,"派遣契約の個別事項を記載した仕様書。\n（承諾書提出時は本書も併せてご提出下さい）"]
[]
[null,null,null,null,null,"⑤","通知書",null,null,null,null,null,null,null,null,null,"就業する派遣労働者の情報を通知するための書類\n（マクロを有効にしてお使い下さい）"]
[]
[null,null,null,null,null,"⑥","【記入例】派遣承諾書",null,null,null,null,null,null,null,null,null,"派遣承諾書を入力時の記入例について記載"]
[]
[null,null,null,null,null,"⑦","【記入例】通知書",null,null,null,null,null,null,null,null,null,"通知書を入力時の記入例について記載"]
[]
[null,null,null,null,null,"⑧","名前詳細シート",null,null,null,null,null,null,null,null,null,"氏名を入力時のルールについて記載"]
[]
[null,null,null,null,null,"⑨","アルファベット姓名シート",null,null,null,null,null,null,null,null,null,"アルファベット姓名を入力時のルールについて記載"]
[]
[]
[null,null,null,null,null,"参\n考","派遣会社様向けマニュアル\n(外部リンク)",null,null,null,null,null,null,null,null,null,"NTTデータコーポレートサイトに掲載の人材派遣関連運用マニュアル"]

{"sheet":"①ご提出について A","index":1,"n_rows":71,"n_cols":38,"rows_kept":71,"cut":false,"hidden":false,"merged":[[2,0,3,37],[5,0,6,37],[13,10,13,36],[14,10,15,36],[14,1,15,9],[13,1,13,9],[26,1,28,1],[26,2,28,14],[26,15,28,30],[26,31,28,36],[20,2,20,14],[20,15,20,30],[20,31,20,36],[21,1,25,1],[21,2,25,14],[21,15,25,30],[21,31,25,36]]}
["【Aribaを利用しているが、e-staffingを利用していない案件向けの説明】"]
[]
["派遣元会社のご担当者様へ"]
[]
[]
["「通知書」のご提出について"]
[]
[]
[null,null,null,null,null,null,null,null,null,null,null,null,null,null,null,null,null,null,null,null,null,null,null,null,null,null,null,null,null,null,null,null,null,null,null,null,null,"株式会社NTTデータ　プロキュアメント部"]
[null,null,null,null,null,null,null,null,null,null,null,null,null,null,null,null,null,null,null,null,null,null,null,null,null,null,null,null,null,null,null,null,null,null,null,null,null,"NTTデータマネジメントサービス株式会社　購買事業部"]
[]
["１．Aribaシステムで「注文書」を受領後、以下の書類を提出してください。"]
[]
[null,"書類名",null,null,null,null,null,null,null,null,"注意事項"]
[null,"通知書",null,null,null,null,null,null,null,null,"本様式を使用して作成してください。作成時は、記入例を参照してください。\nひとつの注文で、複数の労働者を派遣する場合は、人数分の通知書を作成してください。\n本書類への押印は不要です。（原本／コピーの区分はありません）"]
[]
[null,null,"※「派遣承諾」はAribaシステム上で行いますので、派遣承諾書の提出は不要です。"]
[]
["２．上記項番「１」の書類を、「NTTデータマネジメントサービス」と「派遣先部署」にそれぞれ１部ずつ提出してください。"]
[]
[null,null,"提出先",null,null,null,null,null,null,null,null,null,null,null,null,"提出方法",null,null,null,null,null,null,null,null,null,null,null,null,null,null,null,"宛先について"]
[null,"①","NTTデータマネジメントサービス株式会社",null,null,null,null,null,null,null,null,null,null,null,null,"PDFにてご提出ください。\n\nPO番号単位で１ファイルとして頂き、ファイル名は以下のとおりとしてください。\nPO番号＋バージョン（例：PO1234567-1.pdf）\n\n【ご提出時のメール送付ルール】\n・件名は以下のとおり記載ください。（〇には通知書数を入れてください）\n件名：【御社名】通知書〇件\n・メール本文にPO番号＋バージョンを記載してください。\n　（複数件ある場合は全件記載ください）\n",null,null,null,null,null,null,null,null,null,null,null,null,null,null,null,"宛先アドレスは、下記項番「４」の通りです。"]
[]
[]
[]
[]
[null,"②","派遣先部署",null,null,null,null,null,null,null,null,null,null,null,null,"郵送・PDF送付どちらでも可。\n派遣先御担当者様へご確認ください。",null,null,null,null,null,null,null,null,null,null,null,null,null,null,null,"宛先は、派遣先部署にお尋ねください。"]
[]
[]
[null,"・ ご提出いただいた書類に不備があった場合は、再提出していただくことになりますのでご注意ください。"]
[]
["３. 注文書受領から各書類提出の流れ"]
[]
[]
[]
[]
[]
[]
[]
[]
[]
[]
[]
[]
[]
[]
[]
[]
[]
[]
[]
[]
[]
[]
[]
[]
[]
[]
[]
[]
[]
[]
[]
[]
[]
[]
[]
["４. 本様式に関する書類提出先及びお問い合わせ先"]
[null,"NTTデータマネジメントサービス(株)"]
[null,"購買事業部　契約書管理グループ　"]
[null,"メールアドレス：sscjinpakanri@am.nttdata.co.jp"]

{"sheet":"②ご提出について B","index":2,"n_rows":77,"n_cols":38,"rows_kept":77,"cut":false,"hidden":false,"merged":[[2,0,3,37],[5,0,6,37],[13,2,13,9],[13,10,13,36],[14,1,15,1],[14,2,15,9],[14,10,15,36],[16,1,18,1],[16,2,18,9],[16,10,18,36],[19,1,21,1],[19,2,21,9],[19,10,21,36],[30,1,32,1],[30,2,32,14],[30,15,32,30],[30,31,32,36],[26,2,26,14],[26,15,26,30],[26,31,26,36],[27,1,29,1],[27,2,29,14],[27,15,29,30],[27,31,29,36]]}
["【Aribaもe-staffingも利用していない案件向けの説明】"]
[]
["派遣元会社のご担当者様へ"]
[]
[]
["「派遣承諾書兼通知書」のご提出について"]
[]
[]
[null,null,null,null,null,null,null,null,null,null,null,null,null,null,null,null,null,null,null,null,null,null,null,null,null,null,null,null,null,null,null,null,null,null,null,null,null,"株式会社NTTデータ　プロキュアメント部"]
[null,null,null,null,null,null,null,null,null,null,null,null,null,null,null,null,null,null,null,null,null,null,null,null,null,null,null,null,null,null,null,null,null,null,null,null,null,"NTTデータマネジメントサービス株式会社　購買事業部"]
[]
["１．FAXにて「注文書」を受領後、以下の書類を紙面にて提出してください。"]
[]
[null,null,"書類名",null,null,null,null,null,null,null,"注意事項"]
[null,"①","派遣承諾書",null,null,null,null,null,null,null,"本様式を使用して作成してください。作成時は記入例を参照してください。\n本書類には「公印」を押印してください。押印されたものを原本とします。"]
[]
[null,"②","人材派遣見積書兼人材派遣仕様書",null,null,null,null,null,null,null,"「注文書」に添付された「人材派遣見積書兼人材派遣仕様書」を、コピーして提出してください。"]
[]
[]
[null,"③","通知書",null,null,null,null,null,null,null,"本様式を使用して作成してください。作成時は記入例を参照してください。\nひとつの注文で、複数の労働者を派遣する場合は、人数分の通知書を作成してください。\n本書類への押印は不要です。（原本／コピーの区分はありません）"]
[]
[]
[null,"・ 注文単位に①～③の順に重ねて提出してください。（ホチキスで留めていただいても結構です）"]
[]
["２．上記項番「１」の書類一式を、「NTTデータマネジメントサービス」と「派遣先部署」にそれぞれ１部ずつ提出してください。"]
[]
[null,null,"提出先",null,null,null,null,null,null,null,null,null,null,null,null,"提出方法",null,null,null,null,null,null,null,null,null,null,null,null,null,null,null,"宛先について"]
[null,"①","NTTデータマネジメントサービス株式会社",null,null,null,null,null,null,null,null,null,null,null,null,"郵送にて送付願います。\n※「派遣承諾書」は、原本をお送りください。",null,null,null,null,null,null,null,null,null,null,null,null,null,null,null,"宛先は、下記項番「４」の通りです。"]
[]
[]
[null,"②","派遣先部署",null,null,null,null,null,null,null,null,null,null,null,null,"郵送・PDF送付どちらでも可。\n派遣先御担当者様へご確認ください。\n※「派遣承諾書」は、原本のコピーをお送りください。",null,null,null,null,null,null,null,null,null,null,null,null,null,null,null,"宛先は、派遣先部署にお尋ねください。"]
[]
[]
[null,"・ ご提出いただいた書類に不備があった場合は、再提出していただくことになりますのでご注意ください。"]
[]
["３. 注文書受領から各書類提出の流れ"]
[]
[]
[]
[]
[]
[]
[]
[]
[]
[]
[]
[]
[]
[]
[]
[]
[]
[]
[]
[]
[]
[]
[]
[]
[]
[]
[]
[]
[]
[]
[]
[]
[]
[]
[]
["４. 本様式に関する書類提出先及びお問い合わせ先"]
[null,"〒135-6011"]
[null,"東京都江東区豊洲3-3-3　豊洲センタービル11階"]
[null,"NTTデータマネジメントサービス(株)"]
[null,"購買事業部　契約書管理グループ　"]
[null,"メールアドレス： sscjinpakanri@am.nttdata.co.jp"]

{"sheet":"③派遣承諾書","index":3,"n_rows":69,"n_cols":36,"rows_kept":69,"cut":false,"hidden":false,"merged":[[16,1,16,8],[16,9,16,15],[23,1,23,8],[29,1,29,8],[30,1,30,8],[17,1,17,8],[17,9,17,32],[20,1,20,8],[20,9,20,10],[20,11,20,12],[20,14,20,17],[31,1,31,8],[39,25,39,26],[38,9,38,11],[23,9,35,32],[25,1,25,8],[24,1,24,8],[26,1,26,8],[27,1,27,8],[28,1,28,8],[33,1,33,8],[34,1,34,8],[35,1,35,8],[32,1,32,8],[38,12,38,32],[39,9,39,10],[39,11,39,16],[2,24,2,26],[2,27,2,32],[3,0,4,32],[7,4,7,16],[9,18,9,32],[10,18,10,32],[11,18,11,32],[15,1,15,8],[15,9,15,15],[15,17,15,24],[15,25,15,32],[36,0,39,0],[36,1,39,8],[68,0,74,0],[68,1,74,8],[68,9,74,32],[42,9,42,11],[42,12,42,32],[43,9,43,10],[43,11,43,16],[43,17,43,18],[43,19,43,24],[43,25,43,26],[43,27,43,32],[40,0,43,0],[40,1,43,8],[63,1,63,8],[57,1,57,8],[65,1,65,8],[66,1,66,8],[45,1,45,8],[67,1,67,8],[46,1,46,8],[47,1,47,8],[48,1,48,8],[49,1,49,8],[50,1,50,8],[51,1,51,8],[39,17,39,18],[39,19,39,24],[61,1,61,8],[62,1,62,8],[55,1,55,8],[56,1,56,8],[52,1,52,8],[53,1,53,8],[58,1,58,8],[59,1,59,8],[60,1,60,8],[44,9,67,32],[39,27,39,32],[64,1,64,8],[44,1,44,8],[54,1,54,8]]}
[]
[]
[null,null,null,null,null,null,null,null,null,null,null,null,null,null,null,null,null,null,null,null,null,null,null,null,"承諾日 "]
["派遣承諾書"]
[null,null,null,null,null,null,null,null,null,null,null,null,null,null,null,null,null,null,null,null,null,null,null,null,null,null,null,null,null,null,null,null,null,"                                                                                                                                                                                                                                                                                                                                                                                                       "]
[]
["（派遣先）"]
[null,null,null,"事業者名称 "]
[null,null,null,null,null,null,null,null,null,null,null,null,null,null,"（派遣元）"]
[null,null,null,null,null,null,null,null,null,null,null,null,null,null,null,null,null,"事業者名称 "]
[null,null,null,null,null,null,null,null,null,null,null,null,null,null,null,null,null,"部署名 "]
[null,null,null,null,null,null,null,null,null,null,null,null,null,null,null,null,null,"責任者氏名 "]
[]
[]
["◆以下のご注文について、労働者の派遣を承諾します。"]
[1,"オーダーID",null,null,null,null,null,null,null,null,null,null,null,null,null,null,null,"（オーダーID）バージョン"]
[2,"基本統一伝票番号"]
[3,"契約件名"]
[]
["◆派遣事業の許可番号（または届出番号）は以下の通りです。",null,null,null,null,null,null,null,null,null,null,null,null,null,null,null,null,null,null,null,null,null,null,null,null,null,null,null,null,null,null,null,null,null,null,"許可番号リスト"]
[4,"許可番号（または届出番号）",null,null,null,null,null,null,null,null,null,null,null,"-",null,null,null,null,null,null,null,null,null,null,null,null,null,null,null,null,null,null,null,null,null,"01"]
[null,null,null,null,null,null,null,null,null,null,null,null,null,null,null,null,null,null,null,null,null,null,null,null,null,null,null,null,null,null,null,null,null,null,null,"02"]
["◆本契約に係る条件は、以下の通りです。",null,null,null,null,null,null,null,null,null,null,null,null,null,null,null,null,null,null,null,null,null,null,null,null,null,null,null,null,null,null,null,null,null,null,"03"]
[5,"派遣人員",null,null,null,null,null,null,null,"人材派遣見積書兼人材派遣仕様書（別紙含む）のとおり",null,null,null,null,null,null,null,null,null,null,null,null,null,null,null,null,null,null,null,null,null,null,null,null,null,"04"]
[6,"期間制限",null,null,null,null,null,null,null,null,null,null,null,null,null,null,null,null,null,null,null,null,null,null,null,null,null,null,null,null,null,null,null,null,null,"05"]
[7,"期間制限の対象外となる理由",null,null,null,null,null,null,null,null,null,null,null,null,null,null,null,null,null,null,null,null,null,null,null,null,null,null,null,null,null,null,null,null,null,"06"]
[8,"就業先事業所",null,null,null,null,null,null,null,null,null,null,null,null,null,null,null,null,null,null,null,null,null,null,null,null,null,null,null,null,null,null,null,null,null,"07"]
[9,"事業所単位の名称",null,null,null,null,null,null,null,null,null,null,null,null,null,null,null,null,null,null,null,null,null,null,null,null,null,null,null,null,null,null,null,null,null,"08"]
[10,"就業先事業所所在地",null,null,null,null,null,null,null,null,null,null,null,null,null,null,null,null,null,null,null,null,null,null,null,null,null,null,null,null,null,null,null,null,null,"09"]
[11,"派遣先会社",null,null,null,null,null,null,null,null,null,null,null,null,null,null,null,null,null,null,null,null,null,null,null,null,null,null,null,null,null,null,null,null,null,"10"]
[12,"就業先住所",null,null,null,null,null,null,null,null,null,null,null,null,null,null,null,null,null,null,null,null,null,null,null,null,null,null,null,null,null,null,null,null,null,"11"]
[13,"就業先部署",null,null,null,null,null,null,null,null,null,null,null,null,null,null,null,null,null,null,null,null,null,null,null,null,null,null,null,null,null,null,null,null,null,"12"]
[14,"派遣先組織単位",null,null,null,null,null,null,null,null,null,null,null,null,null,null,null,null,null,null,null,null,null,null,null,null,null,null,null,null,null,null,null,null,null,"13"]
[15,"派遣先責任者",null,null,null,null,null,null,null,null,null,null,null,null,null,null,null,null,null,null,null,null,null,null,null,null,null,null,null,null,null,null,null,null,1,"14"]
[16,"指揮命令者",null,null,null,null,null,null,null,null,null,null,null,null,null,null,null,null,null,null,null,null,null,null,null,null,null,null,null,null,null,null,null,null,1,"15"]
[17,"派遣先苦情処理申立先",null,null,null,null,null,null,null,null,null,null,null,null,null,null,null,null,null,null,null,null,null,null,null,null,null,null,null,null,null,null,null,null,2,"16"]
[18,"派遣元責任者",null,null,null,null,null,null,null,null," 人材派遣見積書兼人材派遣仕様書（別紙含む）のとおり",null,null,null,null,null,null,null,null,null,null,null,null,null,null,null,null,null,null,null,null,null,null,null,{"$f":"IF(TRIM(M39)=\"\",0,4)+AI34","v":1},"17"]
[null,null,null,null,null,null,null,null,null,null," 以下に定めるとおり",null,null,null,null,null,null,null,null,null,null,null,null,null,null,null,null,null,null,null,null,null,null,null,{"$f":"IF(TRIM(L40)=\"\",0,4)+AI34","v":1},"18"]
[null,null,null,null,null,null,null,null,null,"部署名",null,null,null,null,null,null,null,null,null,null,null,null,null,null,null,null,null,null,null,null,null,null,null,null,{"$f":"IF(TRIM(T40)=\"\",0,4)+AI34","v":1},"19"]
[null,null,null,null,null,null,null,null,null,"役職",null,null,null,null,null,null,null,"氏名",null,null,null,null,null,null,null,"TEL",null,"",null,null,null,null,null,null,{"$f":"IF(TRIM(AB40)=\"\",0,4)+AI34","v":1},"20"]
[19,"派遣元苦情処理申立先",null,null,null,null,null,null,null,null," 人材派遣見積書兼人材派遣仕様書（別紙含む）のとおり",null,null,null,null,null,null,null,null,null,null,null,null,null,null,null,null,null,null,null,null,null,null,null,{"$f":"IF(TRIM(M43)=\"\",0,4)+AI35","v":1},"21"]
[null,null,null,null,null,null,null,null,null,null," 以下に定めるとおり",null,null,null,null,null,null,null,null,null,null,null,null,null,null,null,null,null,null,null,null,null,null,null,{"$f":"IF(TRIM(L44)=\"\",0,4)+AI35","v":1},"22"]
[null,null,null,null,null,null,null,null,null,"部署名",null,null,null,null,null,null,null,null,null,null,null,null,null,null,null,null,null,null,null,null,null,null,null,null,{"$f":"IF(TRIM(T44)=\"\",0,4)+AI35","v":1},"23"]
[null,null,null,null,null,null,null,null,null,"役職",null,null,null,null,null,null,null,"氏名",null,null,null,null,null,null,null,"TEL",null,"",null,null,null,null,null,null,{"$f":"IF(TRIM(AB44)=\"\",0,4)+AI35","v":1},"24"]
[20,"派遣労働者を無期雇用派遣労働者又は60歳以上の者に限定するか否かの別",null,null,null,null,null,null,null,"人材派遣見積書兼人材派遣仕様書（別紙含む）のとおり",null,null,null,null,null,null,null,null,null,null,null,null,null,null,null,null,null,null,null,null,null,null,null,null,null,"25"]
[21,"派遣労働者を協定対象派遣労働者に限定するか否かの別",null,null,null,null,null,null,null,null,null,null,null,null,null,null,null,null,null,null,null,null,null,null,null,null,null,null,null,null,null,null,null,null,null,"26"]
[22,"派遣期間",null,null,null,null,null,null,null,null,null,null,null,null,null,null,null,null,null,null,null,null,null,null,null,null,null,null,null,null,null,null,null,null,null,"27"]
[23,"勤務日",null,null,null,null,null,null,null,null,null,null,null,null,null,null,null,null,null,null,null,null,null,null,null,null,null,null,null,null,null,null,null,null,null,"28"]
[24,"休日",null,null,null,null,null,null,null,null,null,null,null,null,null,null,null,null,null,null,null,null,null,null,null,null,null,null,null,null,null,null,null,null,null,"29"]
[25,"法定休日",null,null,null,null,null,null,null,null,null,null,null,null,null,null,null,null,null,null,null,null,null,null,null,null,null,null,null,null,null,null,null,null,null,"30"]
[26,"勤務時間",null,null,null,null,null,null,null,null,null,null,null,null,null,null,null,null,null,null,null,null,null,null,null,null,null,null,null,null,null,null,null,null,null,"31"]
[27,"休憩時間",null,null,null,null,null,null,null,null,null,null,null,null,null,null,null,null,null,null,null,null,null,null,null,null,null,null,null,null,null,null,null,null,null,"32"]
[28,"時間外労働",null,null,null,null,null,null,null,null,null,null,null,null,null,null,null,null,null,null,null,null,null,null,null,null,null,null,null,null,null,null,null,null,null,"33"]
[29,"休日労働",null,null,null,null,null,null,null,null,null,null,null,null,null,null,null,null,null,null,null,null,null,null,null,null,null,null,null,null,null,null,null,null,null,"34"]
[30,"所定内単金",null,null,null,null,null,null,null,null,null,null,null,null,null,null,null,null,null,null,null,null,null,null,null,null,null,null,null,null,null,null,null,null,null,"35"]
[31,"所定外単金",null,null,null,null,null,null,null,null,null,null,null,null,null,null,null,null,null,null,null,null,null,null,null,null,null,null,null,null,null,null,null,null,null,"36"]
[32,"宿泊費",null,null,null,null,null,null,null,null,null,null,null,null,null,null,null,null,null,null,null,null,null,null,null,null,null,null,null,null,null,null,null,null,null,"37"]
[33,"業務内容",null,null,null,null,null,null,null,null,null,null,null,null,null,null,null,null,null,null,null,null,null,null,null,null,null,null,null,null,null,null,null,null,null,"38"]
[34,"責任の程度",null,null,null,null,null,null,null,null,null,null,null,null,null,null,null,null,null,null,null,null,null,null,null,null,null,null,null,null,null,null,null,null,null,"39"]
[35,"業務ランク",null,null,null,null,null,null,null,null,null,null,null,null,null,null,null,null,null,null,null,null,null,null,null,null,null,null,null,null,null,null,null,null,null,"40"]
[36,"便宜供与",null,null,null,null,null,null,null,null,null,null,null,null,null,null,null,null,null,null,null,null,null,null,null,null,null,null,null,null,null,null,null,null,null,"41"]
[37,"教育訓練",null,null,null,null,null,null,null,null,null,null,null,null,null,null,null,null,null,null,null,null,null,null,null,null,null,null,null,null,null,null,null,null,null,"42"]
[38,"36協定",null,null,null,null,null,null,null,null,null,null,null,null,null,null,null,null,null,null,null,null,null,null,null,null,null,null,null,null,null,null,null,null,null,"43"]
[39,"安全及び衛生",null,null,null,null,null,null,null,null,null,null,null,null,null,null,null,null,null,null,null,null,null,null,null,null,null,null,null,null,null,null,null,null,null,"44"]
[40,"苦情処理方法・連携体制",null,null,null,null,null,null,null,null,null,null,null,null,null,null,null,null,null,null,null,null,null,null,null,null,null,null,null,null,null,null,null,null,null,"45"]
[41,"労働者派遣契約の解除に当たって講ずる派遣労働者の雇用の安定を図るための処置",null,null,null,null,null,null,null,null,null,null,null,null,null,null,null,null,null,null,null,null,null,null,null,null,null,null,null,null,null,null,null,null,null,"46"]
[42,"派遣労働者を雇用する場合の\n紛争防止措置",null,null,null,null,null,null,null,null,null,null,null,null,null,null,null,null,null,null,null,null,null,null,null,null,null,null,null,null,null,null,null,null,null,"47"]
[43,"備考"]
[44,"特記事項"]

{"sheet":"④人材派遣見積書兼人材派遣仕様書","index":4,"n_rows":0,"n_cols":0,"rows_kept":0,"cut":false,"hidden":false,"merged":[]}

{"sheet":"⑤通知書","index":5,"n_rows":67,"n_cols":37,"rows_kept":67,"cut":false,"hidden":false,"merged":[[51,1,51,8],[51,9,51,32],[59,0,63,0],[31,0,38,0],[40,21,40,23],[40,9,40,11],[40,12,40,13],[37,12,38,25],[31,1,38,8],[36,12,36,25],[39,0,41,0],[35,12,35,25],[31,9,32,25],[52,0,58,0],[52,1,58,8],[52,9,58,32],[45,2,46,8],[45,9,46,10],[45,1,50,1],[43,26,43,27],[47,16,48,32],[49,16,50,32],[44,0,50,0],[45,11,46,15],[47,2,48,8],[47,9,48,10],[47,11,48,15],[14,18,14,32],[24,1,28,8],[49,2,50,8],[49,9,50,10],[49,11,50,15],[44,1,44,32],[31,26,32,32],[43,1,43,8],[43,9,43,11],[43,12,43,20],[43,21,43,25],[39,1,41,8],[39,9,39,13],[39,14,39,20],[40,14,40,20],[41,9,41,13],[33,12,33,25],[34,12,34,25],[33,26,33,32],[20,16,20,32],[2,24,2,26],[2,27,2,32],[4,0,5,32],[8,4,8,17],[9,4,9,17],[24,0,28,0],[38,26,38,27],[38,28,38,32],[41,21,41,25],[39,21,39,25],[41,14,41,20],[36,26,36,32],[28,27,28,32],[26,9,26,14],[26,15,26,32],[28,9,28,26],[24,9,24,32],[25,27,25,32],[27,9,27,26],[27,27,27,32],[34,26,34,32],[20,1,20,8],[20,9,20,15],[33,36,34,36],[66,27,69,30],[43,28,43,32],[40,26,40,32],[39,26,39,32],[35,26,35,32],[45,16,46,32],[59,31,59,32],[42,18,42,32],[37,26,37,32],[41,26,41,32],[0,26,0,32],[65,3,65,24],[59,9,59,12],[59,13,59,16],[59,17,59,20],[59,21,59,24],[59,1,59,8],[65,27,65,30],[42,1,42,8],[42,9,42,11],[42,12,42,13],[42,14,42,17],[40,24,40,25],[10,4,10,17],[12,18,12,32],[13,18,13,32],[21,1,21,8],[21,9,21,32],[15,18,15,32],[19,1,19,8],[19,9,19,15],[19,17,19,24],[19,25,19,32],[16,18,16,32]]}
[null,null,null,null,null,null,null,null,null,null,null,null,null,null,null,null,null,null,null,null,null,null,null,null,null,null,"購様008共 （ver.10.01）"]
[]
[null,null,null,null,null,null,null,null,null,null,null,null,null,null,null,null,null,null,null,null,null,null,null,null,"通知日 "]
[]
["通　知　書"]
[]
[]
["（派遣先）"]
[null,null,null,"事業者名称 "]
[null,null,null,"部署名 "]
[null,null,null,"責任者氏名 "]
[null,null,null,null,null,null,null,null,null,null,null,null,null,null,"（派遣元）"]
[null,null,null,null,null,null,null,null,null,null,null,null,null,null,null,null,null,"事業者名称 ",{"$f":"IF(③派遣承諾書!S10=\"\",\"\",③派遣承諾書!S10)","v":""}]
[null,null,null,null,null,null,null,null,null,null,null,null,null,null,null,null,null,"部署名 "]
[null,null,null,null,null,null,null,null,null,null,null,null,null,null,null,null,null,"所在地 "]
[null,null,null,null,null,null,null,null,null,null,null,null,null,null,null,null,null,"本通知書担当者 "]
[null,null,null,null,null,null,null,null,null,null,null,null,null,null,null,null,null,"連絡先電話番号 "]
[]
["◆以下の契約について、派遣労働者に関する事項を通知します。"]
[1,"オーダーID",null,null,null,null,null,null,null,{"$f":"IF(③派遣承諾書!J16=\"\",\"\",③派遣承諾書!J16)","v":""},null,null,null,null,null,null,null,"（オーダーID）バージョン",null,null,null,null,null,null,null,{"$f":"IF(③派遣承諾書!Z16=\"\",\"\",③派遣承諾書!Z16)","v":""}]
[2,"基本統一伝票番号",null,null,null,null,null,null,null,{"$f":"IF(③派遣承諾書!J17=\"\",\"\",③派遣承諾書!J17)","v":""}]
[3,"契約件名",null,null,null,null,null,null,null,{"$f":"IF(③派遣承諾書!J18=\"\",\"\",③派遣承諾書!J18)","v":""}]
[]
["◆通知理由は以下の通りです。"]
[4,"通知理由",null,null,null,null,null,null,null,null,null,null,null,null,null,null,null,null,null,null,null,null,null,null,null,null,null,null,null,null,null,null,null,null,null,null,"リスト項目"]
[null,null,null,null,null,null,null,null,null,"派遣労働者の変更有無"]
[null,null,null,null,null,null,null,null,null,"その他の場合の理由",null,null,null,null,null,null,null,null,null,null,null,null,null,null,null,null,null,null,null,null,null,null,null,null,null,null,"1.派遣労働者が新しい組織での就業を新規に開始したため"]
[null,null,null,null,null,null,null,null,null,"交代派遣労働者の就業開始日",null,null,null,null,null,null,null,null,null,null,null,null,null,null,null,null,null,null,null,null,null,null,null,null,null,null,"2.派遣労働者が現在の就業先組織で就業を延長/就業を再開したため"]
[null,null,null,null,null,null,null,null,null,"前任派遣労働者の就業終了日",null,null,null,null,null,null,null,null,null,null,null,null,null,null,null,null,null,null,null,null,null,null,null,null,null,null,"3.派遣労働者が派遣契約期間内で途中交代したため"]
[null,null,null,null,null,null,null,null,null,null,null,null,null,null,null,null,null,null,null,null,null,null,null,null,null,null,null,null,null,null,null,null,null,null,null,null,"4.その他"]
["◆通知事項は以下の通りです。"]
[5,"派遣労働者の就業実績",null,null,null,null,null,null,null,"今回の派遣先組織単位での過去3ヶ月+1日以内における就業実績の有無"]
[]
[null,null,null,null,null,null,null,null,null,null,null,null,"前回就業時のオーダーID",null,null,null,null,null,null,null,null,null,null,null,null,null,""]
[null,null,null,null,null,null,null,null,null,null,null,null,"前回就業時のオーダーID　の　バージョン",null,null,null,null,null,null,null,null,null,null,null,null,null,""]
[null,null,null,null,null,null,null,null,null,null,null,null,"今回の派遣先会社は前回の派遣先会社と"]
[null,null,null,null,null,null,null,null,null,null,null,null,"今回の派遣先事業所は前回の派遣先事業所と"]
[null,null,null,null,null,null,null,null,null,null,null,null,"今回の派遣先組織単位で、派遣労働者が「個人単位の期間制限」に抵触する最初の日（抵触日）"]
[null,null,null,null,null,null,null,null,null,null,null,null,null,null,null,null,null,null,null,null,null,null,null,null,null,null,"起算日"]
[6,"派遣労働者の氏名",null,null,null,null,null,null,null,"姓",null,null,null,null,null,null,null,null,null,null,null,"名"]
[null,null,null,null,null,null,null,null,null,"外字利用",null,null,null,null,null,null,null,null,null,null,null,"外字利用"]
[null,null,null,null,null,null,null,null,null,"アルファベット姓",null,null,null,null,null,null,null,null,null,null,null,"アルファベット名"]
[7,"性別/年齢区分",null,null,null,null,null,null,null,"性別",null,null,null,null,"年齢区分",null,null,null,"45歳以上60歳未満",null,null,null,null,null,null,null,null,null,null,null,null,null,null,{"$f":"IF(年齢区分1=\"18歳未満\",\"18歳未満の派遣は受け入れておりません\",\"\")","v":""},null,null,2]
[8,"派遣労働者の雇用区分",null,null,null,null,null,null,null,null,null,null,"「有期雇用」の場合の雇用期間",null,null,null,null,null,null,null,null,null,null,null,null,null,"～",null,null,null,null,null,null,null,null,null,false]
[9,"　社会保険・雇用保険の被保険者資格取得届の提出の有無"]
[null,null,"雇用保険",null,null,null,null,null,null,null,null,"「無」の場合\nの理由"]
[]
[null,null,"健康保険",null,null,null,null,null,null,null,null,"「無」の場合\nの理由"]
[]
[null,null,"厚生年金保険",null,null,null,null,null,null,null,null,"「無」の場合\nの理由"]
[]
[10,"協定対象派遣労働者であるか否かの別",null,null,null,null,null,null,null,"協定対象派遣労働者（労使協定方式）"]
[11,"特記事項"]
[]
[]
[]
[]
[]
[]
[12,"SSC管理用",null,null,null,null,null,null,null,"受付年月日",null,null,null,null,null,null,null,"受付担当",null,null,null,null,null,null,null,null,null,null,null,null,null,{"$f":"IF(提出判定=\"確認中\",\"c\",IF(提出判定=\"提出不可\",\"*\",IF(提出判定=\"提出可\",\"\",\"_\")))","v":"*"}]
[null,"<派遣先責任者への依頼事項>"]
[null,"　・本通知書を派遣元から受領したら、速やかに「派遣先管理台帳」を作成してください。"]
[null,"　・派遣法にて、派遣先は「派遣先管理台帳」の作成が義務付けられています。"]
[null,"　・派遣先管理台帳の記載事項は、「人材派遣見積書兼人材派遣仕様書」「派遣承諾書」および「通知書」から転記してください。"]
[]
[null,null,null,"上記内容にお間違いなければ、以下の判定チェックボタンを実行してください",null,null,null,null,null,null,null,null,null,null,null,null,null,null,null,null,null,null,null,null,null,null,null,"提出判定"]
[null,null,null,null,null,null,null,null,null,null,null,null,null,null,null,null,null,null,null,null,null,null,null,null,null,null,null,"提出不可"]

{"sheet":"⑥【記入例】派遣承諾書","index":6,"n_rows":69,"n_cols":36,"rows_kept":69,"cut":false,"hidden":false,"merged":[[68,9,74,32],[55,1,55,8],[56,1,56,8],[57,1,57,8],[47,1,47,8],[50,1,50,8],[48,1,48,8],[53,1,53,8],[54,1,54,8],[51,1,51,8],[52,1,52,8],[49,1,49,8],[44,9,67,32],[58,1,58,8],[59,1,59,8],[60,1,60,8],[20,1,20,8],[20,9,20,10],[20,11,20,12],[20,14,20,17],[23,1,23,8],[23,9,35,32],[33,1,33,8],[24,1,24,8],[25,1,25,8],[26,1,26,8],[27,1,27,8],[28,1,28,8],[29,1,29,8],[30,1,30,8],[31,1,31,8],[32,1,32,8],[17,1,17,8],[17,9,17,32],[2,24,2,26],[2,27,2,32],[3,0,4,32],[7,4,7,16],[9,18,9,32],[10,18,10,32],[11,18,11,32],[15,1,15,8],[15,9,15,15],[15,17,15,24],[15,25,15,32],[16,1,16,8],[16,9,16,15],[45,1,45,8],[44,1,44,8],[46,1,46,8],[34,1,34,8],[35,1,35,8],[61,1,61,8],[62,1,62,8],[68,0,74,0],[68,1,74,8],[63,1,63,8],[64,1,64,8],[65,1,65,8],[66,1,66,8],[67,1,67,8],[40,0,43,0],[40,1,43,8],[42,9,42,11],[42,12,42,32],[43,9,43,10],[43,11,43,16],[43,17,43,18],[43,19,43,24],[43,25,43,26],[43,27,43,32],[36,0,39,0],[36,1,39,8],[38,9,38,11],[38,12,38,32],[39,9,39,10],[39,11,39,16],[39,17,39,18],[39,19,39,24],[39,25,39,26],[39,27,39,32]]}
[]
[]
[null,null,null,null,null,null,null,null,null,null,null,null,null,null,null,null,null,null,null,null,null,null,null,null,"承諾日 ",null,null,"2022-07-26"]
["派遣承諾書"]
[null,null,null,null,null,null,null,null,null,null,null,null,null,null,null,null,null,null,null,null,null,null,null,null,null,null,null,null,null,null,null,null,null,"                                                                                                                                                                                                                                                                                                                                                                                                       "]
[]
["（派遣先）"]
[null,null,null,"事業者名称 ","株式会社エヌ・ティ・ティ・データ　御中"]
[null,null,null,null,null,null,null,null,null,null,null,null,null,null,"（派遣元）"]
[null,null,null,null,null,null,null,null,null,null,null,null,null,null,null,null,null,"事業者名称 ","サンプル株式会社"]
[null,null,null,null,null,null,null,null,null,null,null,null,null,null,null,null,null,"部署名 ","派遣事業部"]
[null,null,null,null,null,null,null,null,null,null,null,null,null,null,null,null,null,"責任者氏名 ","事業部長　派遣　太郎"]
[]
[]
["◆以下のご注文について、労働者の派遣を承諾します。"]
[1,"オーダーID",null,null,null,null,null,null,null,"PO10000001",null,null,null,null,null,null,null,"（オーダーID）バージョン",null,null,null,null,null,null,null,"1"]
[2,"基本統一伝票番号",null,null,null,null,null,null,null,"T22-12345678"]
[3,"契約件名",null,null,null,null,null,null,null,"国際部東アジア課の業務に関する派遣業務"]
[]
["◆派遣事業の許可番号（または届出番号）は以下の通りです。",null,null,null,null,null,null,null,null,null,null,null,null,null,null,null,null,null,null,null,null,null,null,null,null,null,null,null,null,null,null,null,null,null,null,"許可番号リスト"]
[4,"許可番号（または届出番号）",null,null,null,null,null,null,null,"派",null,"12",null,"-","345678",null,null,null,null,null,null,null,null,null,null,null,null,null,null,null,null,null,null,null,null,"01"]
[null,null,null,null,null,null,null,null,null,null,null,null,null,null,null,null,null,null,null,null,null,null,null,null,null,null,null,null,null,null,null,null,null,null,null,"02"]
["◆本契約に係る条件は、以下の通りです。",null,null,null,null,null,null,null,null,null,null,null,null,null,null,null,null,null,null,null,null,null,null,null,null,null,null,null,null,null,null,null,null,null,null,"03"]
[5,"派遣人員",null,null,null,null,null,null,null,"人材派遣見積書兼人材派遣仕様書（別紙含む）のとおり",null,null,null,null,null,null,null,null,null,null,null,null,null,null,null,null,null,null,null,null,null,null,null,null,null,"04"]
[6,"期間制限",null,null,null,null,null,null,null,null,null,null,null,null,null,null,null,null,null,null,null,null,null,null,null,null,null,null,null,null,null,null,null,null,null,"05"]
[7,"期間制限の対象外となる理由",null,null,null,null,null,null,null,null,null,null,null,null,null,null,null,null,null,null,null,null,null,null,null,null,null,null,null,null,null,null,null,null,null,"06"]
[8,"就業先事業所",null,null,null,null,null,null,null,null,null,null,null,null,null,null,null,null,null,null,null,null,null,null,null,null,null,null,null,null,null,null,null,null,null,"07"]
[9,"事業所単位の名称",null,null,null,null,null,null,null,null,null,null,null,null,null,null,null,null,null,null,null,null,null,null,null,null,null,null,null,null,null,null,null,null,null,"08"]
[10,"就業先事業所所在地",null,null,null,null,null,null,null,null,null,null,null,null,null,null,null,null,null,null,null,null,null,null,null,null,null,null,null,null,null,null,null,null,null,"09"]
[11,"派遣先会社",null,null,null,null,null,null,null,null,null,null,null,null,null,null,null,null,null,null,null,null,null,null,null,null,null,null,null,null,null,null,null,null,null,"10"]
[12,"就業先住所",null,null,null,null,null,null,null,null,null,null,null,null,null,null,null,null,null,null,null,null,null,null,null,null,null,null,null,null,null,null,null,null,null,"11"]
[13,"就業先部署",null,null,null,null,null,null,null,null,null,null,null,null,null,null,null,null,null,null,null,null,null,null,null,null,null,null,null,null,null,null,null,null,null,"12"]
[14,"派遣先組織単位",null,null,null,null,null,null,null,null,null,null,null,null,null,null,null,null,null,null,null,null,null,null,null,null,null,null,null,null,null,null,null,null,null,"13"]
[15,"派遣先責任者",null,null,null,null,null,null,null,null,null,null,null,null,null,null,null,null,null,null,null,null,null,null,null,null,null,null,null,null,null,null,null,null,2,"14"]
[16,"指揮命令者",null,null,null,null,null,null,null,null,null,null,null,null,null,null,null,null,null,null,null,null,null,null,null,null,null,null,null,null,null,null,null,null,1,"15"]
[17,"派遣先苦情処理申立先",null,null,null,null,null,null,null,null,null,null,null,null,null,null,null,null,null,null,null,null,null,null,null,null,null,null,null,null,null,null,null,null,2,"16"]
[18,"派遣元責任者",null,null,null,null,null,null,null,null," 人材派遣見積書兼人材派遣仕様書（別紙含む）のとおり",null,null,null,null,null,null,null,null,null,null,null,null,null,null,null,null,null,null,null,null,null,null,null,{"$f":"IF(TRIM(M39)=\"\",0,4)+AI34","v":2},"17"]
[null,null,null,null,null,null,null,null,null,null," 以下に定めるとおり",null,null,null,null,null,null,null,null,null,null,null,null,null,null,null,null,null,null,null,null,null,null,null,{"$f":"IF(TRIM(L40)=\"\",0,4)+AI34","v":2},"18"]
[null,null,null,null,null,null,null,null,null,"部署名",null,null,null,null,null,null,null,null,null,null,null,null,null,null,null,null,null,null,null,null,null,null,null,null,{"$f":"IF(TRIM(T40)=\"\",0,4)+AI34","v":2},"19"]
[null,null,null,null,null,null,null,null,null,"役職",null,null,null,null,null,null,null,"氏名",null,null,null,null,null,null,null,"TEL",null,"",null,null,null,null,null,null,{"$f":"IF(TRIM(AB40)=\"\",0,4)+AI34","v":2},"20"]
[19,"派遣元苦情処理申立先",null,null,null,null,null,null,null,null,"人材派遣見積書兼人材派遣仕様書（別紙含む）のとおり",null,null,null,null,null,null,null,null,null,null,null,null,null,null,null,null,null,null,null,null,null,null,null,{"$f":"IF(TRIM(M43)=\"\",0,4)+AI35","v":1},"21"]
[null,null,null,null,null,null,null,null,null,null," 以下に定めるとおり",null,null,null,null,null,null,null,null,null,null,null,null,null,null,null,null,null,null,null,null,null,null,null,{"$f":"IF(TRIM(L44)=\"\",0,4)+AI35","v":1},"22"]
[null,null,null,null,null,null,null,null,null,"部署名",null,null,null,null,null,null,null,null,null,null,null,null,null,null,null,null,null,null,null,null,null,null,null,null,{"$f":"IF(TRIM(T44)=\"\",0,4)+AI35","v":1},"23"]
[null,null,null,null,null,null,null,null,null,"役職",null,null,null,null,null,null,null,"氏名",null,null,null,null,null,null,null,"TEL",null,"",null,null,null,null,null,null,{"$f":"IF(TRIM(AB44)=\"\",0,4)+AI35","v":1},"24"]
[20,"派遣労働者を無期雇用派遣労働者又は60歳以上の者に限定するか否かの別",null,null,null,null,null,null,null,"人材派遣見積書兼人材派遣仕様書（別紙含む）のとおり",null,null,null,null,null,null,null,null,null,null,null,null,null,null,null,null,null,null,null,null,null,null,null,null,null,"25"]
[21,"派遣労働者を協定対象派遣労働者に限定するか否かの別",null,null,null,null,null,null,null,null,null,null,null,null,null,null,null,null,null,null,null,null,null,null,null,null,null,null,null,null,null,null,null,null,null,"26"]
[22,"派遣期間",null,null,null,null,null,null,null,null,null,null,null,null,null,null,null,null,null,null,null,null,null,null,null,null,null,null,null,null,null,null,null,null,null,"27"]
[23,"勤務日",null,null,null,null,null,null,null,null,null,null,null,null,null,null,null,null,null,null,null,null,null,null,null,null,null,null,null,null,null,null,null,null,null,"28"]
[24,"休日",null,null,null,null,null,null,null,null,null,null,null,null,null,null,null,null,null,null,null,null,null,null,null,null,null,null,null,null,null,null,null,null,null,"29"]
[25,"法定休日",null,null,null,null,null,null,null,null,null,null,null,null,null,null,null,null,null,null,null,null,null,null,null,null,null,null,null,null,null,null,null,null,null,"30"]
[26,"勤務時間",null,null,null,null,null,null,null,null,null,null,null,null,null,null,null,null,null,null,null,null,null,null,null,null,null,null,null,null,null,null,null,null,null,"31"]
[27,"休憩時間",null,null,null,null,null,null,null,null,null,null,null,null,null,null,null,null,null,null,null,null,null,null,null,null,null,null,null,null,null,null,null,null,null,"32"]
[28,"時間外労働",null,null,null,null,null,null,null,null,null,null,null,null,null,null,null,null,null,null,null,null,null,null,null,null,null,null,null,null,null,null,null,null,null,"33"]
[29,"休日労働",null,null,null,null,null,null,null,null,null,null,null,null,null,null,null,null,null,null,null,null,null,null,null,null,null,null,null,null,null,null,null,null,null,"34"]
[30,"所定内単金",null,null,null,null,null,null,null,null,null,null,null,null,null,null,null,null,null,null,null,null,null,null,null,null,null,null,null,null,null,null,null,null,null,"35"]
[31,"所定外単金",null,null,null,null,null,null,null,null,null,null,null,null,null,null,null,null,null,null,null,null,null,null,null,null,null,null,null,null,null,null,null,null,null,"36"]
[32,"宿泊費",null,null,null,null,null,null,null,null,null,null,null,null,null,null,null,null,null,null,null,null,null,null,null,null,null,null,null,null,null,null,null,null,null,"37"]
[33,"業務内容",null,null,null,null,null,null,null,null,null,null,null,null,null,null,null,null,null,null,null,null,null,null,null,null,null,null,null,null,null,null,null,null,null,"38"]
[34,"責任の程度",null,null,null,null,null,null,null,null,null,null,null,null,null,null,null,null,null,null,null,null,null,null,null,null,null,null,null,null,null,null,null,null,null,"39"]
[35,"業務ランク",null,null,null,null,null,null,null,null,null,null,null,null,null,null,null,null,null,null,null,null,null,null,null,null,null,null,null,null,null,null,null,null,null,"40"]
[36,"便宜供与",null,null,null,null,null,null,null,null,null,null,null,null,null,null,null,null,null,null,null,null,null,null,null,null,null,null,null,null,null,null,null,null,null,"41"]
[37,"教育訓練",null,null,null,null,null,null,null,null,null,null,null,null,null,null,null,null,null,null,null,null,null,null,null,null,null,null,null,null,null,null,null,null,null,"42"]
[38,"36協定",null,null,null,null,null,null,null,null,null,null,null,null,null,null,null,null,null,null,null,null,null,null,null,null,null,null,null,null,null,null,null,null,null,"43"]
[39,"安全及び衛生",null,null,null,null,null,null,null,null,null,null,null,null,null,null,null,null,null,null,null,null,null,null,null,null,null,null,null,null,null,null,null,null,null,"44"]
[40,"苦情処理方法・連携体制",null,null,null,null,null,null,null,null,null,null,null,null,null,null,null,null,null,null,null,null,null,null,null,null,null,null,null,null,null,null,null,null,null,"45"]
[41,"労働者派遣契約の解除に当たって講ずる派遣労働者の雇用の安定を図るための処置",null,null,null,null,null,null,null,null,null,null,null,null,null,null,null,null,null,null,null,null,null,null,null,null,null,null,null,null,null,null,null,null,null,"46"]
[42,"派遣労働者を雇用する場合の\n紛争防止措置",null,null,null,null,null,null,null,null,null,null,null,null,null,null,null,null,null,null,null,null,null,null,null,null,null,null,null,null,null,null,null,null,null,"47"]
[43,"備考"]
[44,"特記事項"]

{"sheet":"⑦【記入例】通知書","index":7,"n_rows":71,"n_cols":37,"rows_kept":71,"cut":false,"hidden":false,"merged":[[63,0,67,0],[53,11,54,15],[53,16,54,32],[69,3,69,24],[69,27,69,30],[56,0,62,0],[56,1,62,8],[56,9,62,32],[48,0,54,0],[48,1,48,32],[49,1,54,1],[49,2,50,8],[49,9,50,10],[49,11,50,15],[49,16,50,32],[51,2,52,8],[70,27,73,30],[63,1,63,8],[63,9,63,12],[63,13,63,16],[63,17,63,20],[63,21,63,24],[63,25,63,32],[51,9,52,10],[51,11,52,15],[51,16,52,32],[53,2,54,8],[53,9,54,10],[55,1,55,8],[55,9,55,32],[47,1,47,8],[47,9,47,11],[47,12,47,20],[47,21,47,25],[47,26,47,27],[47,28,47,32],[45,9,45,13],[45,14,45,20],[45,21,45,25],[45,26,45,32],[46,1,46,8],[46,9,46,11],[46,12,46,13],[46,14,46,17],[46,18,46,32],[37,36,38,36],[39,12,40,25],[39,26,40,32],[39,36,40,36],[43,26,43,32],[41,26,41,32],[42,26,42,27],[42,28,42,32],[31,0,42,0],[31,1,42,8],[41,12,42,25],[43,0,45,0],[43,1,45,8],[43,9,43,13],[43,14,43,20],[43,21,43,25],[44,9,44,11],[31,9,32,25],[44,26,44,32],[44,12,44,13],[44,14,44,20],[44,21,44,23],[44,24,44,25],[31,26,32,32],[33,12,34,25],[33,26,34,32],[37,12,38,25],[37,26,38,32],[21,1,21,8],[21,9,21,32],[24,0,28,0],[24,1,28,8],[24,9,24,32],[25,27,25,32],[26,9,26,14],[26,15,26,32],[27,9,27,26],[27,27,27,32],[28,9,28,26],[28,27,28,32],[35,26,36,32],[35,12,36,25],[20,1,20,8],[20,9,20,15],[20,16,20,32],[0,26,0,33],[19,1,19,8],[19,9,19,15],[19,17,19,24],[19,25,19,32],[2,24,2,26],[2,27,2,32],[4,0,5,32],[8,4,8,17],[9,4,9,17],[10,4,10,17],[12,18,12,32],[13,18,13,32],[14,18,14,32],[15,18,15,32],[16,18,16,32]]}
[null,null,null,null,null,null,null,null,null,null,null,null,null,null,null,null,null,null,null,null,null,null,null,null,null,null,"購様008共（ver.10.01）"]
[]
[null,null,null,null,null,null,null,null,null,null,null,null,null,null,null,null,null,null,null,null,null,null,null,null,"通知日 ",null,null,"2022-07-26"]
[]
["通　知　書"]
[]
[]
["（派遣先）"]
[null,null,null,"事業者名称 ","株式会社エヌ・ティ・ティ・データ"]
[null,null,null,"部署名 ","国際部　東アジア課"]
[null,null,null,"責任者氏名 ","課長　派遣　花子　殿"]
[null,null,null,null,null,null,null,null,null,null,null,null,null,null,"（派遣元）"]
[null,null,null,null,null,null,null,null,null,null,null,null,null,null,null,null,null,"事業者名称 ","サンプル株式会社"]
[null,null,null,null,null,null,null,null,null,null,null,null,null,null,null,null,null,"部署名 ","人事部"]
[null,null,null,null,null,null,null,null,null,null,null,null,null,null,null,null,null,"所在地 ","東京都江東区豊洲1-2-3　●●ビル"]
[null,null,null,null,null,null,null,null,null,null,null,null,null,null,null,null,null,"本通知書担当者 ","人事　太郎"]
[null,null,null,null,null,null,null,null,null,null,null,null,null,null,null,null,null,"連絡先電話番号 ","03-1192-6789"]
[]
["◆以下の契約について、派遣労働者に関する事項を通知します。"]
[1,"オーダー番号/ID",null,null,null,null,null,null,null,"PO10000001",null,null,null,null,null,null,null,"（オーダーID）バージョン",null,null,null,null,null,null,null,"1"]
[2,"基本統一伝票番号",null,null,null,null,null,null,null,"T22-12345678"]
[3,"契約件名",null,null,null,null,null,null,null,"国際部東アジア課の業務に関する派遣業務"]
[]
["◆通知理由は以下の通りです。"]
[4,"通知理由",null,null,null,null,null,null,null,"2.派遣労働者が現在の就業先組織で就業を延長/就業を再開したため",null,null,null,null,null,null,null,null,null,null,null,null,null,null,null,null,null,null,null,null,null,null,null,null,null,null,"リスト項目"]
[null,null,null,null,null,null,null,null,null,"派遣労働者の変更有無"]
[null,null,null,null,null,null,null,null,null,"その他の場合の理由",null,null,null,null,null,null,null,null,null,null,null,null,null,null,null,null,null,null,null,null,null,null,null,null,null,null,"1.派遣労働者が新しい組織での就業を新規に開始したため"]
[null,null,null,null,null,null,null,null,null,"交代派遣労働者の就業開始日",null,null,null,null,null,null,null,null,null,null,null,null,null,null,null,null,null,null,null,null,null,null,null,null,null,null,"2.派遣労働者が現在の就業先組織で就業を延長/就業を再開したため"]
[null,null,null,null,null,null,null,null,null,"前任派遣労働者の就業終了日",null,null,null,null,null,null,null,null,null,null,null,null,null,null,null,null,null,null,null,null,null,null,null,null,null,null,"3.派遣労働者が派遣契約期間内で途中交代したため"]
[null,null,null,null,null,null,null,null,null,null,null,null,null,null,null,null,null,null,null,null,null,null,null,null,null,null,null,null,null,null,null,null,null,null,null,null,"4.その他"]
["◆通知事項は以下の通りです。"]
[5,"派遣労働者の就業実績",null,null,null,null,null,null,null,"今回の派遣先組織単位での過去3ヶ月+1日以内における就業実績の有無",null,null,null,null,null,null,null,null,null,null,null,null,null,null,null,null,"有"]
[]
[null,null,null,null,null,null,null,null,null,null,null,null,"前回就業時のオーダー番号/ID",null,null,null,null,null,null,null,null,null,null,null,null,null,"PO10000001"]
[]
[null,null,null,null,null,null,null,null,null,null,null,null,"前回就業時のオーダーID　の　バージョン",null,null,null,null,null,null,null,null,null,null,null,null,null,"1"]
[]
[null,null,null,null,null,null,null,null,null,null,null,null,"今回の派遣先会社は前回の派遣先会社と",null,null,null,null,null,null,null,null,null,null,null,null,null,null,null,null,null,null,null,null,null,null,null,1]
[]
[null,null,null,null,null,null,null,null,null,null,null,null,"今回の派遣先事業所は前回の派遣先事業所と",null,null,null,null,null,null,null,null,null,null,null,null,null,null,null,null,null,null,null,null,null,null,null,1]
[]
[null,null,null,null,null,null,null,null,null,null,null,null,"今回の派遣先組織単位で、派遣労働者が「個人単位の期間制限」に抵触する最初の日（抵触日）",null,null,null,null,null,null,null,null,null,null,null,null,null,"2019-04-01"]
[null,null,null,null,null,null,null,null,null,null,null,null,null,null,null,null,null,null,null,null,null,null,null,null,null,null,"起算日",null,"2016-04-01"]
[6,"派遣労働者の氏名",null,null,null,null,null,null,null,"姓",null,null,null,null,"派元",null,null,null,null,null,null,"名",null,null,null,null,"祐樹"]
[null,null,null,null,null,null,null,null,null,"外字利用",null,null,null,null,null,null,null,null,null,null,null,"外字利用"]
[null,null,null,null,null,null,null,null,null,"アルファベット姓",null,null,null,null,"HAMOTO",null,null,null,null,null,null,"アルファベット名",null,null,null,null,"YUKI"]
[7,"性別/年齢区分",null,null,null,null,null,null,null,"性別",null,null,"男",null,"年齢区分",null,null,null,"45歳未満",null,null,null,null,null,null,null,null,null,null,null,null,null,null,null,null,null,2]
[8,"派遣労働者の雇用区分",null,null,null,null,null,null,null,"有期雇用",null,null,"「有期雇用」の場合の雇用期間",null,null,null,null,null,null,null,null,"2016-04-01",null,null,null,null,"～",null,"2017-03-31",null,null,null,null,null,null,null,true]
[9,"　社会保険・雇用保険の被保険者資格取得届の提出の有無"]
[null,null,"雇用保険",null,null,null,null,null,null,"無",null,"「無」の場合\nの理由",null,null,null,null,"週20時間以上でないため"]
[]
[null,null,"健康保険",null,null,null,null,null,null,"無",null,"「無」の場合\nの理由",null,null,null,null,"週4日以上の労働時間が週30時間以上でないため"]
[]
[null,null,"厚生年金保険",null,null,null,null,null,null,"有",null,"「無」の場合\nの理由"]
[]
[10,"協定対象派遣労働者であるか否かの別",null,null,null,null,null,null,null,"協定対象派遣労働者（労使協定方式）"]
[11,"特記事項"]
[]
[]
[]
[]
[]
[]
[12,"SSC管理用",null,null,null,null,null,null,null,"受付年月日",null,null,null,null,null,null,null,"受付担当"]
[null,"<派遣先責任者への依頼事項>"]
[null,"　・本通知書を派遣元から受領したら、速やかに「派遣先管理台帳」を作成してください。"]
[null,"　・派遣法にて、派遣先は「派遣先管理台帳」の作成が義務付けられています。"]
[null,"　・派遣先管理台帳の記載事項は、「人材派遣見積書兼人材派遣仕様書」「派遣承諾書」および「通知書」から転記してください。"]
[]
[null,null,null,"上記内容にお間違いなければ、以下の判定チェックボタンを実行してください",null,null,null,null,null,null,null,null,null,null,null,null,null,null,null,null,null,null,null,null,null,null,null,"提出判定"]
[null,null,null,null,null,null,null,null,null,null,null,null,null,null,null,null,null,null,null,null,null,null,null,null,null,null,null,"提出可"]

{"sheet":"⑧名前詳細シート","index":8,"n_rows":72,"n_cols":32,"rows_kept":72,"cut":false,"hidden":false,"merged":[[68,1,70,1],[68,2,70,9],[68,10,68,14],[68,15,68,21],[68,22,68,26],[70,10,70,14],[70,15,70,21],[70,22,70,26],[70,27,70,33],[68,27,68,33],[69,10,69,12],[69,13,69,14],[69,15,69,21],[69,22,69,24],[69,25,69,26],[69,27,69,33],[36,10,36,12],[36,13,36,14],[36,15,36,21],[36,22,36,24],[36,25,36,26],[41,1,43,1],[41,2,43,9],[41,10,41,14],[41,15,41,21],[41,22,41,26],[42,10,42,12],[42,13,42,14],[42,15,42,21],[42,22,42,24],[42,25,42,26],[43,10,43,14],[43,15,43,21],[43,22,43,26],[16,27,16,33],[25,27,25,33],[26,10,26,12],[26,13,26,14],[26,15,26,21],[26,22,26,24],[26,27,26,33],[14,1,16,1],[14,2,16,9],[14,10,14,14],[14,15,14,21],[14,22,14,26],[15,25,15,26],[16,10,16,14],[16,15,16,21],[16,22,16,26],[14,27,14,33],[15,10,15,12],[15,13,15,14],[15,15,15,21],[15,22,15,24],[15,27,15,33],[37,27,37,33],[35,27,35,33],[36,27,36,33],[41,27,41,33],[42,27,42,33],[43,27,43,33],[49,31,49,34],[25,1,27,1],[25,2,27,9],[25,10,25,14],[25,15,25,21],[25,22,25,26],[26,25,26,26],[27,10,27,14],[27,15,27,21],[27,22,27,26],[35,1,37,1],[35,2,37,9],[35,10,35,14],[35,15,35,21],[35,22,35,26],[37,10,37,14],[37,15,37,21],[37,22,37,26],[71,31,71,34],[61,31,61,34],[3,1,3,10],[4,1,4,14],[5,1,5,12],[6,1,6,9],[5,29,5,33],[60,27,60,33],[58,1,60,1],[58,2,60,9],[58,10,58,14],[58,15,58,21],[58,22,58,26],[59,25,59,26],[60,10,60,14],[60,15,60,21],[60,22,60,26],[27,27,27,33],[58,27,58,33],[59,10,59,12],[59,13,59,14],[59,15,59,21],[59,22,59,24],[59,27,59,33]]}
["氏名入力ルールについて"]
[null,"氏名については、以下の入力ルールを参考に記入してください"]
[]
[null,"① 一般的な姓名の入力方法について"]
[null,"② 姓名のいずれかに外字を含む入力方法について"]
[null,"③ 姓名に漢字を含まない入力方法について",null,null,null,null,null,null,null,null,null,null,null,null,null,null,null,null,null,null,null,null,null,null,null,null,null,null,null,"通知書シートに戻る"]
[null,"④ 姓の入力がない方法について"]
[]
[null,"① 一般的な姓名の入力方法について"]
[null,"1.「姓」を入力してください。"]
[null,"2.「アルファベット姓」を入力してください。"]
[null,"3.「名」を入力してください。"]
[null,"4.「アルファベット名」を入力してください。"]
[]
[null,6,"派遣労働者の氏名",null,null,null,null,null,null,null,"姓",null,null,null,null,"派遣",null,null,null,null,null,null,"名",null,null,null,null,"太郎"]
[null,null,null,null,null,null,null,null,null,null,"外字利用",null,null,null,null,null,null,null,null,null,null,null,"外字利用"]
[null,null,null,null,null,null,null,null,null,null,"アルファベット姓",null,null,null,null,"HAKEN",null,null,null,null,null,null,"アルファベット名",null,null,null,null,"TARO"]
[]
[]
[null,"② 姓名のいずれかに外字を含む入力方法について"]
[null,"1.①の1～4までと同様に入力してください。"]
[null,"2.全ての項目を入力し終えた後、判定チェックボタンを押して外字利用が「有」になると、姓名のいずれかで入力した文字に外字が含まれていることになります。"]
[null,"3.外字利用の外字部分が「●」になった文字が入ってくるので、その部分を平仮名に置き換えてください。"]
[null,"4.再度判定チェックボタン押して提出判定が「提出可」なら問題ありません。"]
[]
[null,6,"派遣労働者の氏名",null,null,null,null,null,null,null,"姓",null,null,null,null,"棈山",null,null,null,null,null,null,"名",null,null,null,null,"裕太"]
[null,null,null,null,null,null,null,null,null,null,"外字利用",null,null,null,null,null,null,null,null,null,null,null,"外字利用"]
[null,null,null,null,null,null,null,null,null,null,"アルファベット姓",null,null,null,null,"ABEYAMA",null,null,null,null,null,null,"アルファベット名",null,null,null,null,"YUTA"]
[]
[]
[]
[]
[]
[]
[null,"・以下、「姓」に外字を含む方法"]
[null,6,"派遣労働者の氏名",null,null,null,null,null,null,null,"姓",null,null,null,null,"棈山",null,null,null,null,null,null,"名",null,null,null,null,"裕太"]
[null,null,null,null,null,null,null,null,null,null,"外字利用",null,null,"有",null,"●山",null,null,null,null,null,null,"外字利用"]
[null,null,null,null,null,null,null,null,null,null,"アルファベット姓",null,null,null,null,"ABEYAMA",null,null,null,null,null,null,"アルファベット名",null,null,null,null,"YUTA"]
[]
[]
[]
[null,6,"派遣労働者の氏名",null,null,null,null,null,null,null,"姓",null,null,null,null,"棈山",null,null,null,null,null,null,"名",null,null,null,null,"裕太"]
[null,null,null,null,null,null,null,null,null,null,"外字利用",null,null,"有",null,"あべ山",null,null,null,null,null,null,"外字利用"]
[null,null,null,null,null,null,null,null,null,null,"アルファベット姓",null,null,null,null,"ABEYAMA",null,null,null,null,null,null,"アルファベット名",null,null,null,null,"YUTA"]
[]
[]
[]
[]
[]
[null,null,null,null,null,null,null,null,null,null,null,null,null,null,null,null,null,null,null,null,null,null,null,null,null,null,null,null,null,null,null,"↑TOPへ戻る"]
[]
[null,"③ 姓名に漢字を含まない入力方法について"]
[null,"1.「姓」に「ひらがな」または「カタカナ」を入力してください。"]
[null,"2.「アルファベット姓」を入力してください。"]
[null,"3.「名」に「ひらがな」または「カタカナ」を入力してください。"]
[null,"4.「アルファベット名」を入力してください。"]
[null,"※国籍によって「アルファベット姓/名」を常用している場合、以下の例を参考に入力してください。"]
[]
[null,6,"派遣労働者の氏名",null,null,null,null,null,null,null,"姓",null,null,null,null,"ジョン",null,null,null,null,null,null,"名",null,null,null,null,"スミス"]
[null,null,null,null,null,null,null,null,null,null,"外字利用",null,null,null,null,null,null,null,null,null,null,null,"外字利用"]
[null,null,null,null,null,null,null,null,null,null,"アルファベット姓",null,null,null,null,"JOHN",null,null,null,null,null,null,"アルファベット名",null,null,null,null,"SMITH"]
[null,null,null,null,null,null,null,null,null,null,null,null,null,null,null,null,null,null,null,null,null,null,null,null,null,null,null,null,null,null,null,"↑TOPへ戻る"]
[]
[null,"④ 姓の入力がない方法について"]
[null,"1.「名」に「ひらがな」または「カタカナ」を入力してください。"]
[null,"2.「アルファベット名」を入力してください。"]
[null,"※国籍によって「名」だけになる場合、「姓」を空白にしてください。その場合のみ項目(姓、アルファベット姓)を空白で、判定チェックは提出不可のままで構いません。"]
[]
[null,6,"派遣労働者の氏名",null,null,null,null,null,null,null,"姓",null,null,null,null,null,null,null,null,null,null,null,"名",null,null,null,null,"ナデシコ"]
[null,null,null,null,null,null,null,null,null,null,"外字利用",null,null,null,null,null,null,null,null,null,null,null,"外字利用"]
[null,null,null,null,null,null,null,null,null,null,"アルファベット姓",null,null,null,null,null,null,null,null,null,null,null,"アルファベット名",null,null,null,null,"NADESHIKO"]
[null,null,null,null,null,null,null,null,null,null,null,null,null,null,null,null,null,null,null,null,null,null,null,null,null,null,null,null,null,null,null,"↑TOPへ戻る"]

{"sheet":"⑨アルファベット姓名シート","index":9,"n_rows":64,"n_cols":15,"rows_kept":64,"cut":false,"hidden":false,"merged":[[5,14,5,15],[63,11,63,12],[60,1,60,12],[5,1,5,3],[6,1,16,1],[17,1,17,12],[18,1,22,1],[23,1,23,12],[24,1,35,1],[36,1,36,12],[37,1,42,1],[45,1,45,12],[48,1,48,12],[52,1,52,12],[50,1,50,12]]}
["アルファベット姓名入力ルールについて"]
[null,"アルファベット姓名については、以下の入力ルールを参考に記入してください"]
[null,"・オレンジ色：母音",null,null,"・紫色(濃い)：子音",null,null,null,"・紫色(薄い)：子音/母音"]
[null,"・水色：間違えやすいヘボン式ローマ字"]
[]
[null,null,null,null,"A","-","I","-","U","-","E","-","O",null,"通知書シートに戻る"]
[null,"50音","-","あ","A","い","I","う","U","え","E","お","O"]
[null,null,"K","か","KA","き","KI","く","KU","け","KE","こ","KO"]
[null,null,"S","さ","SA","し","SHI","す","SU","せ","SE","そ","SO"]
[null,null,"T","た","TA","ち","CHI","つ","TSU","て","TE","と","TO"]
[null,null,"N","な","NA","に","NI","ぬ","NU","ね","NE","の","NO"]
[null,null,"H","は","HA","ひ","HI","ふ","FU","へ","HE","ほ","HO"]
[null,null,"M","ま","MA","み","MI","む","MU","め","ME","も","MO"]
[null,null,"Y","や","YA","い","I","ゆ","YU","え","E","よ","YO"]
[null,null,"R","ら","RA","り","RI","る","RU","れ","RE","ろ","RO"]
[null,null,"W","わ","WA","ゐ/ヰ","WI","う","WE","ゑ/ヱ","WE","を","WO"]
[null,null,"N(M)","ん","N(M)","-","-","-","-","-","-","-","-"]
[]
[null,"濁音\n半濁音","G","が","GA","ぎ","GI","ぐ","GU","げ","GE","ご","GO"]
[null,null,"Z","ざ","ZA","じ","JI","ず","ZU","ぜ","ZE","ぞ","ZO"]
[null,null,"D","だ","DA","ぢ","JI","づ","ZU","で","DE","ど","DO"]
[null,null,"B","ば","BA","び","BI","ぶ","BU","べ","BE","ぼ","BO"]
[null,null,"P","ぱ","PA","ぴ","PI","ぷ","PU","ぺ","PE","ぽ","PO"]
[]
[null,"拗音","KY","きゃ","KYA","-","-","きゅ","KYU","-","-","きょ","KYO"]
[null,null,"SH","しゃ","SHA","-","-","しゅ","SHU","-","-","しょ","SHO"]
[null,null,"CH","ちゃ","CHA","-","-","ちゅ","CHU","-","-","ちょ","CHO"]
[null,null,"NY","にゃ","NYA","-","-","にゅ","NYU","-","-","にょ","NYO"]
[null,null,"HY","ひゃ","HYA","-","-","ひゅ","HYU","-","-","ひょ","HYO"]
[null,null,"MY","みゃ","MYA","-","-","みゅ","MYU","-","-","みょ","MYO"]
[null,null,"RY","りゃ","RYA","-","-","りゅ","RYU","-","-","りょ","RYO"]
[null,null,"GY","ぎゃ","GYA","-","-","ぎゅ","GYU","-","-","ぎょ","GYO"]
[null,null,"J","じゃ","JA","-","-","じゅ","JU","-","-","じょ","JO"]
[null,null,"J","ぢゃ","JA","-","-","ぢゅ","JU","-","-","ぢょ","JO"]
[null,null,"BY","びゃ","BYA","-","-","びゅ","BYU","-","-","びょ","BYO"]
[null,null,"PY","ぴゃ","PYA","-","-","ぴゅ","PYU","-","-","ぴょ","PYO"]
[]
[null,"外国式氏名","JI","-","-","-","-","-","-","ジェ","JIE","-","-"]
[null,null,"CHI","-","-","-","-","-","-","チェ","CHIE","-","-"]
[null,null,"TE","-","-","ティ","TEI","-","-","-","-","-","-"]
[null,null,"DE(Y)","-","-","ディ","DEI","デュ","DEYU","-","-","-","-"]
[null,null,"FU","ファ","FUA","フィ","FUI","-","-","フェ","FUE","フォ","FUO"]
[null,null,"BU","ヴァ","BUA","ヴィ","BUI","ヴ","BU","ヴェ","BUE","ヴォ","BUO"]
[]
[null,"・注意事項・"]
[null,"１．撥音（はつおん）について：「ん」は N にして、B・M・P の前の撥音は N の代わりに M にする。"]
[null,"例　　難波（なんば）→ NAMBA、本間（ほんま）→ HOMMA、"]
[null,"　　　三瓶（さんぺい）→ SAMPEI"]
[null,"２．促音（そくおん）について：「っ」で表記される促音は子音を重ねて示す。"]
[null,"例　　服部（はっとり）→ HATTORI、吉川（きっかわ）→ KIKKAWA"]
[null,"・チャ(CHA)、チィ(CHI)、チュ(CHU）、チェ(CHE)、チョ(CHO)音に限り、その前に「T」を加える。"]
[null,"例　　発地（ほっち）→ HOTCHI、八町（はっちょう）→ HATCHO"]
[null,"３．長音（ちょうおん）のついて："]
[null,"　　①末尾部分のふりがなを「お」としたものは「O」とする。"]
[null,"例　　妹尾（せのお）→ SENOO、横尾（よこお）→ YOKOO"]
[null,"　　②末尾以外のふりがなを「お」としたものは「O」を入れない。"]
[null,"例　　大阪（おおさか）→ OSAKA、大河内（おおこうち）→ OKOCHI、"]
[null,"　　　大野（おおの）→ ONO、遠山（とおやま）→ TOYAMA"]
[null,"　　③末尾であるか否かに関わらず、ふりがなを「う」としたものは「U」を入れない。"]
[null,"例　　太郎（たろう）→ TARO、狩野（かのう）→ KANO、中條（ちゅうじょう）→ CHUJO"]
[null,"４．その他について："]
[null,"　　①「うう」の発音になる文字は「U」一文字で表す。"]
[null,"例　　雄二（ゆうじ）→ YUJI、神宮（じんぐう）→ JINGU"]
[null,null,null,null,null,null,null,null,null,null,null,"↑TOPへ戻る"]